bitfinex/quotes_SOLUSD_20220306
["timestamp","ask_amount","ask_price","bid_price","bid_amount"]
[1646581279044,55.41346822,87.169,87.122,21.00969094]
[1646581279243,55.41346822,87.169,87.124,61.93388867]
[1646581279445,55.41346822,87.169,87.13,17.2143]
[1646581279643,55.41346822,87.169,87.13,30.9943]
[1646581279943,55.41346822,87.169,87.131,26.74669094]
[1646581280244,55.41346822,87.169,87.131,23.91055568]
[1646581280444,9.9054237,87.17,87.14,17.2148]
[1646581280644,9.9054237,87.17,87.14,30.9948]
[1646581280846,9.9054237,87.17,87.141,8.57213526]
[1646581281346,9.9054237,87.17,87.142,93.07840336]
[1646581281544,9.9054237,87.17,87.143,5.736]
[1646581281743,9.9054237,87.17,87.143,43.19760414]
[1646581281943,9.9054237,87.17,87.15,17.2089]
[1646581282144,9.9054237,87.17,87.16,13.78]
[1646581283147,9.9054237,87.17,87.161,5.736]
[1646581284447,9.9054237,87.17,87.162,2.83613526]
[1646581284847,9.9054237,87.17,87.163,5.736]
[1646581285047,9.9054237,87.17,87.161,5.736]
[1646581285449,9.9054237,87.17,87.162,2.83613526]
[1646581285647,9.9054237,87.17,87.163,5.736]
[1646581286048,0.0054237,87.17,87.163,5.736]
[1646581286250,0.0054237,87.17,87.164,2.83613526]
[1646581286556,0.1,87.215,87.17,17.2013]
[1646581286748,0.1,87.215,87.18,13.78]
[1646581286948,0.1,87.215,87.182,54.00497481]
[1646581287149,0.1,87.215,87.183,5.734]
[1646581287449,0.1,87.215,87.19,17.2017]
[1646581287649,0.1,87.215,87.191,5.732]
[1646581287849,0.1,87.215,87.2,13.78]
[1646581288050,0.1,87.215,87.201,5.732]
[1646581288449,0.1,87.215,87.202,2.83613526]
[1646581288650,0.1,87.215,87.203,5.732]
[1646581288850,0.1,87.215,87.204,64.17949155]
[1646581289051,0.1,87.215,87.205,5.732]
[1646581289451,0.1,87.215,87.205,26.74169094]
[1646581289650,0.1,87.215,87.206,2.83613526]
[1646581289850,0.1,87.215,87.21,13.78]
[1646581290251,0.1,87.215,87.211,2.83613526]
[1646581290651,0.1,87.215,87.21,13.78]
[1646581291852,0.1,87.215,87.2,17.2047]
[1646581292052,0.1,87.215,87.183,2.83613526]
[1646581292253,0.1,87.215,87.173,2.83613526]
[1646581292454,60.0,87.214,87.14,24.8637]
[1646581292652,115.38159796,87.213,87.14,24.8637]
[1646581292853,114.9,87.211,87.141,5.735]
[1646581293051,114.9,87.211,87.14,24.8637]
[1646581293052,114.9,87.209,87.14,42.0799]
[1646581293252,0.48159796,87.208,87.14,42.0799]
[1646581294052,114.9,87.208,87.14,42.0799]
[1646581294454,0.4030079,87.207,87.14,42.0799]
[1646581294953,114.9,87.208,87.14,42.0799]
[1646581294954,4.735,87.206,87.14,42.0799]
[1646581295162,0.37286669,87.205,87.14,42.0799]
[1646581295354,115.31380175,87.203,87.13,5.735]
[1646581295556,0.48198494,87.2,87.113,30.4535]
[1646581295753,5.736,87.199,87.12,13.78]
[1646581295954,5.736,87.2,87.121,5.736]
[1646581296154,23.7477,87.201,87.122,49.82634481]
[1646581296353,23.7477,87.201,87.123,5.736]
[1646581296554,23.7477,87.201,87.13,17.2205]
[1646581296757,23.7477,87.201,87.131,5.736]
[1646581297156,23.7477,87.201,87.132,9.08677784]
[1646581297356,23.7477,87.201,87.133,5.736]
[1646581297554,24.7523,87.211,87.15,17.2115]
[1646581297855,55.06177213,87.212,87.153,114.9]
[1646581298256,55.06177213,87.212,87.154,9.08677784]
[1646581298455,24.5037,87.248,87.155,114.9]
[1646581298655,24.5037,87.248,87.17,13.78]
[1646581298856,24.2433,87.274,87.171,114.9]
[1646581299056,5.734,87.273,87.171,133.07355568]
[1646581299259,5.734,87.273,87.173,114.9]
[1646581299457,56.77156907,87.272,87.175,114.9]
[1646581299658,5.734,87.271,87.175,114.9]
[1646581299958,5.734,87.271,87.181,114.9]
[1646581300259,56.77156907,87.272,87.191,114.9]
[1646581300658,56.77156907,87.272,87.193,114.9]
[1646581301059,56.77156907,87.272,87.195,114.9]
[1646581301462,56.77156907,87.272,87.197,114.9]
[1646581301661,56.77156907,87.272,87.21,13.78]
[1646581301865,56.77156907,87.272,87.212,114.9]
[1646581302762,56.77156907,87.272,87.23,17.1925]
[1646581302962,56.77156907,87.272,87.24,13.78]
[1646581304162,56.77156907,87.272,87.25,17.1942]
[1646581308564,56.27156907,87.272,87.25,17.1942]
[1646581309167,3.09049655,87.306,87.25,88.91415532]
[1646581309366,3.09049655,87.326,87.25,88.91415532]
[1646581309565,3.09049655,87.331,87.251,0.12013853]
[1646581309767,3.09049655,87.338,87.26,17.1842]
[1646581309967,5.729,87.337,87.26,30.9642]
[1646581310166,59.78171329,87.336,87.26,30.9642]
[1646581310368,5.729,87.335,87.261,133.07355568]
[1646581310768,59.78171329,87.336,87.263,114.9]
[1646581310969,59.78171329,87.336,87.265,114.9]
[1646581311168,59.78171329,87.336,87.28,13.78]
[1646581311369,5.727,87.355,87.29,17.181]
[1646581311571,3.09049655,87.36,87.3,13.78]
[1646581311768,6.26511904,87.37,87.31,13.78]
[1646581311968,5.724,87.369,87.31,13.78]
[1646581312168,5.724,87.382,87.31,13.78]
[1646581312371,46.88443717,87.381,87.311,61.98654324]
[1646581312568,5.724,87.38,87.33,17.175]
[1646581312869,5.724,87.38,87.32,13.78]
[1646581313067,6.26454843,87.379,87.31,31.33530578]
[1646581313267,5.724,87.378,87.31,13.78]
[1646581313668,9.35564315,87.377,87.31,13.78]
[1646581313868,5.724,87.376,87.31,13.78]
[1646581314067,6.2651466,87.375,87.29,13.78]
[1646581314268,5.724,87.374,87.29,13.78]
[1646581314472,5.724,87.374,87.29,30.9638]
[1646581314668,6.2651466,87.373,87.29,30.9638]
[1646581314872,5.724,87.372,87.29,30.9638]
[1646581315070,6.2651466,87.371,87.29,30.9638]
[1646581315270,5.724,87.37,87.29,30.9638]
[1646581315769,6.26558584,87.369,87.29,30.9638]
[1646581315971,5.724,87.368,87.29,30.9638]
[1646581316169,47.60718387,87.367,87.29,30.9638]
[1646581316370,11.98958584,87.366,87.29,30.9638]
[1646581316569,6.26558584,87.365,87.29,30.9638]
[1646581316789,5.724,87.364,87.29,30.9638]
[1646581316991,47.60718387,87.367,87.29,30.9638]
[1646581317295,6.26590055,87.366,87.29,30.9638]
[1646581317493,0.46424615,87.365,87.29,13.78]
[1646581317691,0.46424615,87.363,87.29,13.78]
[1646581317891,11.98990055,87.362,87.29,13.78]
[1646581318190,9.82064325,87.361,87.27,13.78]
[1646581318390,15.0823971,87.36,87.27,13.78]
[1646581318589,6.26590055,87.359,87.27,30.9681]
[1646581318789,5.726,87.358,87.27,30.9681]
[1646581318990,6.26590055,87.357,87.27,30.9681]
[1646581319190,5.726,87.356,87.27,30.9681]
[1646581319389,6.26590055,87.355,87.27,30.9681]
[1646581319590,0.40484142,87.353,87.27,30.9681]
[1646581319790,0.42034938,87.349,87.27,13.78]
[1646581319992,0.44163779,87.347,87.27,13.78]
[1646581320195,5.726,87.348,87.245,23.6621]
[1646581320196,0.7114291,87.345,87.245,23.6621]
[1646581320390,114.9,87.343,87.245,23.6621]
[1646581320592,0.7114291,87.34,87.245,23.6621]
[1646581320794,0.7114291,87.337,87.245,23.6621]
[1646581320992,11.99290055,87.339,87.245,23.6621]
[1646581320993,0.7114291,87.335,87.245,23.6621]
[1646581321191,5.728,87.334,87.245,23.6621]
[1646581321395,0.7114291,87.333,87.245,23.6621]
[1646581321591,51.07241933,87.331,87.245,23.6621]
[1646581323191,6.26803943,87.33,87.25,17.1926]
[1646581323491,6.26803943,87.33,87.25,30.9726]
[1646581323690,51.07241933,87.331,87.25,30.9726]
[1646581324696,51.07241933,87.331,87.251,114.9]
[1646581324898,51.07241933,87.331,87.251,133.07355568]
[1646581325096,51.07241933,87.331,87.27,17.1807]
[1646581325298,51.07241933,87.331,87.28,13.78]
[1646581325698,3.09049655,87.35,87.28,13.78]
[1646581325897,5.726,87.349,87.281,42.53138055]
[1646581326100,51.61549655,87.361,87.282,23.7223]
[1646581326298,6.26544289,87.36,87.282,66.25368055]
[1646581326497,6.26544289,87.36,87.283,42.53138055]
[1646581326699,55.98923437,87.359,87.285,50.7804018]
[1646581326899,6.26544289,87.358,87.286,114.9]
[1646581327100,6.26544289,87.358,87.31,17.18]
[1646581327300,6.26544289,87.358,87.31,30.96]
[1646581327498,55.98923437,87.359,87.31,30.96]
[1646581327902,3.09049655,87.356,87.31,30.96]
[1646581328200,3.09049655,87.357,87.31,30.96]
[1646581328399,3.09049655,87.356,87.31,30.96]
[1646581329199,9.35568306,87.358,87.31,30.96]
[1646581329400,9.35568306,87.358,87.311,5.724]
[1646581329598,9.35568306,87.358,87.32,17.1807]
[1646581330002,3.09049655,87.358,87.32,23.3207]
[1646581330200,3.09049655,87.363,87.32,37.1007]
[1646581330601,3.09049655,87.362,87.32,37.1007]
[1646581330801,50.98389941,87.361,87.321,5.724]
[1646581331002,6.26518651,87.36,87.33,17.1787]
[1646581331402,4.74805744,87.329,87.32,5.724]
[1646581333303,4.74805744,87.329,87.31,71.0405]
[1646581333304,4.74805744,87.329,87.311,5.724]
[1646581334204,4.74805744,87.329,87.312,60.09227638]
[1646581334404,4.74805744,87.329,87.313,5.726]
[1646581334605,4.74805744,87.329,87.311,5.724]
[1646581335108,4.74805744,87.329,87.31,30.9619]
[1646581337909,4.74805744,87.329,87.311,5.726]
[1646581338613,4.74805744,87.329,87.288,5.726]
[1646581338814,0.54889081,87.328,87.281,5.726]
[1646581339012,0.54889081,87.328,87.261,5.727]
[1646581339212,0.54889081,87.328,87.27,13.78]
[1646581339611,4.24805744,87.329,87.27,13.78]
[1646581339612,0.54889081,87.326,87.27,13.78]
[1646581339815,0.54889081,87.326,87.27,30.9714]
[1646581340113,6.26703522,87.325,87.27,30.9714]
[1646581340324,0.54889081,87.324,87.27,17.1914]
[1646581340514,0.54889081,87.322,87.27,17.1914]
[1646581340913,6.26703522,87.321,87.27,17.1914]
[1646581341112,61.08929384,87.32,87.27,17.1914]
[1646581341511,6.2675613,87.319,87.27,17.1914]
[1646581341711,61.08929384,87.32,87.27,17.1914]
[1646581342012,11.99477246,87.319,87.27,17.1914]
[1646581342412,5.727,87.319,87.27,17.1914]
[1646581342911,6.26784778,87.318,87.27,17.1914]
[1646581344014,6.26784778,87.319,87.271,5.727]
[1646581346114,6.26784778,87.319,87.28,17.1904]
[1646581346516,6.26784778,87.319,87.256,5.727]
[1646581346918,6.26784778,87.319,87.255,58.07357315]
[1646581347317,6.26784778,87.319,87.27,17.192]
[1646581347519,114.9,87.317,87.25,13.78]
[1646581347719,6.9188367,87.316,87.23,57.3153]
[1646581347919,3.09049655,87.314,87.231,5.728]
[1646581348120,6.37898892,87.313,87.231,5.728]
[1646581348320,114.9,87.312,87.24,17.1979]
[1646581348523,132.0969,87.31,87.23,13.78]
[1646581348722,132.0969,87.31,87.214,24.35782487]
[1646581348723,114.9,87.308,87.216,15.47173708]
[1646581348920,3.09049655,87.302,87.216,15.47173708]
[1646581349120,114.9,87.3,87.217,5.73]
[1646581349325,114.9,87.298,87.217,5.73]
[1646581349523,114.9,87.296,87.23,17.2002]
[1646581349724,114.9,87.294,87.23,17.2002]
[1646581349921,114.9,87.292,87.23,17.2002]
[1646581350121,5.729,87.291,87.23,17.2002]
[1646581350423,5.729,87.294,87.23,17.2002]
[1646581350649,50.16401787,87.297,87.23,17.2002]
[1646581350650,50.16401787,87.297,87.232,51.52031795]
[1646581350845,6.27004966,87.296,87.24,17.198]
[1646581351245,5.729,87.295,87.24,17.198]
[1646581351945,5.729,87.296,87.24,17.198]
[1646581352945,50.16401787,87.297,87.24,17.198]
[1646581355947,5.729,87.296,87.24,17.198]
[1646581356149,50.16401787,87.297,87.241,5.729]
[1646581357150,5.729,87.296,87.24,17.198]
[1646581358959,50.16401787,87.297,87.241,5.729]
[1646581359158,50.16401787,87.297,87.25,17.1936]
[1646581359360,50.16401787,87.297,87.251,57.33615034]
[1646581359859,50.16401787,87.297,87.252,5.729]
[1646581360267,47.8067,87.307,87.252,5.729]
[1646581360861,47.8067,87.307,87.26,17.1924]
[1646581361060,47.8067,87.307,87.261,5.728]
[1646581361259,101.98469979,87.307,87.253,5.728]
[1646581361466,101.98469979,87.307,87.26,57.2972]
[1646581361661,101.98469979,87.307,87.261,5.728]
[1646581361861,101.98469979,87.307,87.27,17.1904]
[1646581362062,101.98469979,87.307,87.272,47.75744668]
[1646581362363,54.17799979,87.307,87.272,47.75744668]
[1646581362561,54.17799979,87.307,87.273,5.728]
[1646581362963,54.17799979,87.307,87.28,17.1901]
[1646581363162,5.728,87.328,87.28,17.1901]
[1646581364166,63.98374098,87.327,87.28,17.1901]
[1646581366966,6.26759674,87.326,87.28,17.1901]
[1646581367166,6.26759674,87.326,87.27,17.1921]
[1646581367566,0.41952685,87.325,87.27,17.1921]
[1646581367767,0.55554966,87.323,87.27,17.1921]
[1646581368168,5.727,87.324,87.27,17.1921]
[1646581368369,6.2677062,87.322,87.27,17.1921]
[1646581368569,6.2677062,87.325,87.27,17.1921]
[1646581368770,5.727,87.324,87.27,17.1921]
[1646581369070,6.2677062,87.323,87.27,17.1921]
[1646581369294,5.727,87.322,87.27,17.1921]
[1646581369469,6.2677062,87.321,87.27,17.1921]
[1646581369869,11.9947062,87.324,87.27,17.1921]
[1646581370069,6.2677062,87.323,87.27,17.1921]
[1646581370468,6.2677062,87.324,87.27,17.1921]
[1646581370670,6.2677062,87.324,87.27,73.35305318]
[1646581370870,63.98374098,87.327,87.27,87.13305318]
[1646581371271,63.98374098,87.327,87.27,111.49087805]
[1646581374273,63.98374098,87.327,87.27,126.96261513]
[1646581374473,63.98374098,87.327,87.27,145.13617081]
[1646581374875,4.24805744,87.329,87.271,114.9]
[1646581375075,4.24805744,87.329,87.28,17.1826]
[1646581375275,4.24805744,87.329,87.29,13.78]
[1646581375875,4.24805744,87.329,87.291,53.8153551]
[1646581376277,4.24805744,87.329,87.3,17.1829]
[1646581376477,4.24805744,87.329,87.31,13.78]
[1646581376680,3.09049655,87.362,87.32,13.78]
[1646581376976,3.09049655,87.366,87.32,13.78]
[1646581377379,51.58565657,87.365,87.321,59.08904214]
[1646581378176,51.58565657,87.365,87.33,17.1791]
[1646581382086,51.58565657,87.365,87.32,17.1817]
[1646581383990,51.58565657,87.365,87.321,5.724]
[1646581384192,51.58565657,87.365,87.33,17.1802]
[1646581387001,51.58565657,87.365,87.319,5.724]
[1646581387201,51.58565657,87.365,87.303,24.0186]
[1646581387202,0.44675107,87.364,87.303,5.724]
[1646581387402,0.44675107,87.364,87.284,5.724]
[1646581387403,0.81545356,87.362,87.284,5.724]
[1646581387602,0.81545356,87.36,87.27,13.78]
[1646581387801,3.09049655,87.356,87.271,5.726]
[1646581388001,0.81545356,87.355,87.271,55.08451697]
[1646581388202,0.81545356,87.353,87.271,55.08451697]
[1646581388404,64.43900849,87.351,87.271,55.08451697]
[1646581388601,0.81545356,87.349,87.28,17.1899]
[1646581388801,0.81545356,87.347,87.28,17.1899]
[1646581389002,11.99136962,87.346,87.28,17.1899]
[1646581389203,0.81545356,87.345,87.28,17.1899]
[1646581389405,5.726,87.344,87.28,17.1899]
[1646581389603,0.81545356,87.343,87.28,17.1899]
[1646581389903,5.726,87.342,87.28,17.1899]
[1646581390304,5.726,87.348,87.28,17.1899]
[1646581390503,5.726,87.348,87.28,16.89005621]
[1646581390702,6.69132916,87.347,87.28,16.89005621]
[1646581390901,5.726,87.346,87.28,16.89005621]
[1646581391103,0.42484064,87.345,87.281,5.726]
[1646581391304,6.26648852,87.346,87.29,17.1869]
[1646581391503,6.26648852,87.349,87.272,5.726]
[1646581391705,114.9,87.344,87.271,49.35851697]
[1646581391908,114.9,87.344,87.267,46.1893]
[1646581391909,15.55187335,87.343,87.268,5.726]
[1646581392106,3.09049655,87.341,87.267,46.1893]
[1646581392306,114.9,87.339,87.267,46.1893]
[1646581392507,0.53859112,87.336,87.27,17.1915]
[1646581392708,0.53859112,87.333,87.27,17.1915]
[1646581392908,0.53859112,87.331,87.27,17.1915]
[1646581393111,11.99348852,87.33,87.27,17.1915]
[1646581393409,5.727,87.33,87.27,17.1915]
[1646581393610,5.727,87.332,87.27,17.1915]
[1646581393810,121.16724045,87.331,87.27,17.1915]
[1646581394011,114.9,87.329,87.27,17.1915]
[1646581394211,5.727,87.328,87.258,5.727]
[1646581394515,0.45273973,87.325,87.258,5.727]
[1646581394715,3.09049655,87.322,87.258,5.727]
[1646581394912,6.26811597,87.323,87.258,5.727]
[1646581395113,11.99611597,87.332,87.259,72.79521749]
[1646581395415,11.99611597,87.332,87.26,17.1933]
[1646581395612,11.99611597,87.332,87.261,114.9]
[1646581395812,48.57583047,87.333,87.261,179.65988247]
[1646581396012,5.727,87.392,87.263,114.9]
[1646581396213,54.0333,87.392,87.263,114.9]
[1646581396414,116.1426997,87.391,87.265,114.9]
[1646581396613,114.9,87.389,87.28,13.78]
[1646581396813,5.724,87.39,87.281,47.3646]
[1646581396814,114.9,87.387,87.281,47.3646]
[1646581397015,114.9,87.385,87.281,86.41024721]
[1646581397212,120.624,87.384,87.282,59.48976309]
[1646581397414,120.624,87.384,87.282,91.08105585]
[1646581397613,1.2426997,87.383,87.283,31.59129276]
[1646581397821,1.55603851,87.34,87.283,34.42742802]
[1646581398013,54.33384836,87.339,87.283,34.42742802]
[1646581398212,54.33384836,87.339,87.31,17.1821]
[1646581402418,55.88988687,87.339,87.31,17.1821]
[1646581402719,1.55603851,87.34,87.31,17.1821]
[1646581403018,1.55603851,87.338,87.31,17.1821]
[1646581403819,53.45491987,87.337,87.31,17.1821]
[1646581405323,2.499199,87.33,87.31,17.1821]
[1646581413631,2.499199,87.33,87.31,69.72458496]
[1646581416135,2.499199,87.33,87.32,17.1791]
[1646581422256,2.499199,87.33,87.311,2.83613526]
[1646581422456,0.41380847,87.329,87.293,2.83613526]
[1646581422657,0.41380847,87.329,87.29,13.78]
[1646581422859,2.499199,87.33,87.29,13.78]
[1646581423157,2.41831497,87.33,87.29,13.78]
[1646581423359,2.41831497,87.33,87.273,2.83613526]
[1646581423557,2.41831497,87.33,87.267,23.4346]
[1646581423558,1.55603851,87.328,87.267,23.4346]
[1646581423757,19.61101497,87.33,87.267,23.4346]
[1646581423758,1.55603851,87.323,87.267,23.4346]
[1646581424057,19.61101497,87.33,87.267,23.4346]
[1646581424058,52.8931814,87.311,87.267,23.4346]
[1646581424260,1.55603851,87.308,87.26,17.192]
[1646581424458,1.55603851,87.306,87.26,17.192]
[1646581424758,52.8931814,87.311,87.26,17.192]
[1646581424759,1.55603851,87.299,87.26,17.192]
[1646581424961,1.55603851,87.297,87.26,17.192]
[1646581425159,1.55603851,87.296,87.26,17.192]
[1646581425560,56.33714257,87.295,87.26,17.192]
[1646581425760,57.89318108,87.295,87.26,17.192]
[1646581425962,56.33714257,87.295,87.24,71.0853]
[1646581426160,56.33714257,87.295,87.25,17.1958]
[1646581427260,56.33714257,87.295,87.229,23.4346]
[1646581427261,56.33714257,87.295,87.24,17.1978]
[1646581427660,62.06614257,87.295,87.24,17.1978]
[1646581427862,63.62218108,87.295,87.24,17.1978]
[1646581428059,55.83714257,87.295,87.24,17.1978]
[1646581429162,5.729,87.294,87.24,17.1978]
[1646581429365,120.629,87.294,87.231,2.83613526]
[1646581429563,120.629,87.294,87.214,2.83613526]
[1646581429765,114.9,87.292,87.214,2.83613526]
[1646581429963,114.9,87.29,87.214,2.83613526]
[1646581430163,114.9,87.288,87.215,59.59276117]
[1646581430366,17.2028,87.28,87.214,2.83613526]
[1646581430566,5.73,87.279,87.207,9.08677784]
[1646581430765,114.9,87.282,87.197,2.83613526]
[1646581430966,24.1717,87.292,87.193,9.08677784]
[1646581430967,114.9,87.28,87.193,9.08677784]
[1646581431269,1.55603851,87.269,87.187,2.83613526]
[1646581431466,17.2093,87.25,87.188,53.43049045]
[1646581431665,17.2093,87.25,87.185,29.95886937]
[1646581431666,59.67679352,87.249,87.185,29.95886937]
[1646581432468,69.15679352,87.249,87.178,9.08677784]
[1646581432873,23.7835,87.248,87.178,9.08677784]
[1646581433070,5.732,87.247,87.178,9.08677784]
[1646581433268,5.732,87.247,87.19,17.2084]
[1646581434271,114.9,87.246,87.19,17.2084]
[1646581434469,114.9,87.244,87.19,17.2084]
[1646581434669,5.732,87.243,87.19,17.2084]
[1646581435669,114.9,87.245,87.19,17.2084]
[1646581435871,120.632,87.244,87.19,17.2084]
[1646581436773,120.632,87.244,87.177,2.83613526]
[1646581436974,120.632,87.244,87.18,17.2098]
[1646581437572,114.9,87.247,87.18,63.65621435]
[1646581437779,114.9,87.247,87.18,17.2098]
[1646581437977,114.9,87.245,87.18,17.2098]
[1646581438175,2.41831497,87.222,87.18,17.2098]
[1646581438776,56.29282688,87.221,87.18,17.2098]
[1646581439476,54.79282688,87.221,87.18,17.2098]
[1646581440176,2.41831497,87.222,87.18,17.2098]
[1646581440378,2.41831497,87.222,87.169,59.73508713]
[1646581440379,2.41831497,87.222,87.19,17.2015]
[1646581440578,2.41831497,87.222,87.191,0.19255591]
[1646581440776,2.41831497,87.222,87.191,21.20224685]
[1646581440977,5.732,87.302,87.192,18.17355568]
[1646581441276,75.00787981,87.263,87.193,0.253148]
[1646581441577,5.732,87.307,87.201,114.9]
[1646581441776,5.732,87.307,87.192,57.1806704]
[1646581441777,48.3209,87.306,87.22,57.3077]
[1646581441976,48.3209,87.306,87.222,0.39195865]
[1646581442379,5.729,87.305,87.222,0.39195865]
[1646581442578,62.72662192,87.304,87.223,49.85779135]
[1646581442777,5.729,87.303,87.224,0.39195865]
[1646581442981,5.729,87.303,87.231,114.9]
[1646581443181,62.72662192,87.304,87.241,114.9]
[1646581443378,62.72662192,87.304,87.243,114.9]
[1646581443581,5.729,87.344,87.251,115.29195865]
[1646581443781,5.727,87.348,87.251,115.29195865]
[1646581444080,5.727,87.348,87.271,0.39195865]
[1646581444301,48.2404,87.349,87.281,0.39195865]
[1646581444578,48.2404,87.349,87.28,13.78]
[1646581444579,57.82549804,87.348,87.28,13.78]
[1646581444979,57.82549804,87.348,87.3,17.1839]
[1646581445181,57.82549804,87.348,87.301,46.78084928]
[1646581447181,57.82549804,87.348,87.31,17.1849]
[1646581447982,57.82549804,87.348,87.311,5.724]
[1646581448284,57.82549804,87.348,87.32,65.6096264]
[1646581448487,5.724,87.376,87.32,65.6096264]
[1646581448889,1.55603851,87.377,87.32,65.6096264]
[1646581449086,13.78,87.44,87.321,0.10317477]
[1646581449386,17.1757,87.42,87.33,17.1765]
[1646581449584,47.05691181,87.377,87.331,5.723]
[1646581450083,47.05691181,87.377,87.322,5.723]
[1646581450283,47.05691181,87.377,87.321,5.724]
[1646581450989,47.05691181,87.377,87.34,17.1787]
[1646581452287,47.05691181,87.377,87.335,5.723]
[1646581452485,47.05691181,87.377,87.311,5.723]
[1646581452786,47.05691181,87.377,87.301,5.724]
[1646581452989,5.724,87.376,87.301,5.724]
[1646581453190,120.624,87.376,87.302,61.78574185]
[1646581453391,120.624,87.376,87.303,5.724]
[1646581454092,120.624,87.376,87.31,17.1836]
[1646581454901,120.624,87.376,87.292,5.724]
[1646581455101,2.83613526,87.375,87.292,5.724]
[1646581455301,114.9,87.369,87.3,17.1873]
[1646581455502,5.724,87.368,87.3,17.1873]
[1646581455703,114.9,87.367,87.3,17.1873]
[1646581456002,5.724,87.366,87.3,17.1873]
[1646581456404,8.56013526,87.366,87.301,59.32028683]
[1646581456603,5.724,87.366,87.32,17.1832]
[1646581456803,5.724,87.373,87.32,17.1832]
[1646581457206,5.724,87.376,87.32,17.1832]
[1646581457604,7.26769375,87.376,87.32,17.1832]
[1646581458204,5.724,87.376,87.32,17.1832]
[1646581458605,7.26769375,87.376,87.32,17.1832]
[1646581459006,48.60060556,87.377,87.32,17.1832]
[1646581459610,47.05691181,87.377,87.32,17.1832]
[1646581461718,47.05691181,87.377,87.32,30.9632]
[1646581463321,5.724,87.4,87.32,30.9632]
[1646581463521,5.724,87.4,87.322,114.9]
[1646581463720,23.5744,87.403,87.34,17.1743]
[1646581463923,9.2022656,87.406,87.341,5.722]
[1646581464120,9.2022656,87.406,87.342,0.24274185]
[1646581464320,49.01530459,87.4,87.344,49.94807509]
[1646581464524,49.01530459,87.4,87.341,5.722]
[1646581464721,49.01530459,87.4,87.331,5.722]
[1646581464921,120.623,87.399,87.33,17.181]
[1646581465121,123.45913526,87.399,87.31,5.723]
[1646581465321,1.54369375,87.394,87.31,19.503]
[1646581465523,116.44369375,87.389,87.311,5.723]
[1646581465722,5.724,87.388,87.311,70.1171741]
[1646581465922,1.54369375,87.385,87.32,17.1827]
[1646581466122,59.45064653,87.383,87.321,5.723]
[1646581466325,5.723,87.382,87.321,5.723]
[1646581466723,17.1831,87.38,87.321,5.723]
[1646581466925,5.724,87.379,87.321,5.723]
[1646581467124,5.724,87.379,87.33,17.1816]
[1646581467324,120.624,87.379,87.33,17.1816]
[1646581467527,120.624,87.379,87.301,5.723]
[1646581468129,1.54369375,87.378,87.301,5.723]
[1646581468330,5.724,87.377,87.302,54.11627664]
[1646581468530,114.9,87.376,87.303,5.724]
[1646581468731,5.724,87.375,87.303,5.724]
[1646581468931,5.724,87.376,87.303,5.724]
[1646581469132,5.724,87.376,87.321,62.49274399]
[1646581469530,1.54369375,87.377,87.322,5.724]
[1646581469932,1.54369375,87.364,87.322,5.724]
[1646581470231,56.66098592,87.364,87.33,17.1816]
[1646581470631,1.54369375,87.366,87.33,17.1816]
[1646581470831,1.54369375,87.375,87.331,5.724]
[1646581471031,4.63108126,87.424,87.331,5.724]
[1646581471032,1.54369375,87.376,87.331,5.724]
[1646581471636,1.54369375,87.363,87.331,5.724]
[1646581472031,1.54369375,87.363,87.34,17.177]
[1646581472432,1.54369375,87.364,87.34,17.177]
[1646581472631,1.54369375,87.365,87.34,17.177]
[1646581473932,1.54369375,87.364,87.34,17.177]
[1646581474141,1.54369375,87.365,87.34,17.177]
[1646581474337,1.54369375,87.364,87.34,17.177]